bitfinex-derivatives/quotes_SOLF0:USTF0_20220102
["timestamp","ask_amount","ask_price","bid_price","bid_amount"]
[1641129609127,30.5539,175.54,175.45,12.12788834]
[1641129609326,14.89842415,175.53,175.49,4.04531218]
[1641129609927,33.5539,175.54,175.45,19.52858711]
[1641129610228,30.5539,175.54,175.45,19.52858711]
[1641129610531,30.5539,175.54,175.49,4.0454931]
[1641129610730,14.89912941,175.53,175.49,4.0454931]
[1641129610929,27.66479,175.52,175.49,4.0454931]
[1641129611231,39.8012693,175.52,175.48,4.04551875]
[1641129612132,2.76265011,175.51,175.45,1.28286109]
[1641129612732,27.66479,175.52,175.45,1.28286109]
[1641129612733,39.80136896,175.52,175.48,4.04552632]
[1641129613236,2.76261197,175.51,175.49,4.04545843]
[1641129614140,39.8011653,175.52,175.48,4.04557378]
[1641129614336,3.0,175.49,175.48,4.04557378]
[1641129614536,8.493,175.49,175.48,4.04557378]
[1641129614937,36.15779,175.49,175.44,33.25334223]
[1641129615736,2.75879027,175.48,175.44,29.2138]
[1641129616339,3.0,175.47,175.41,12.12788834]
[1641129616738,4.03966774,175.46,175.44,4.03966774]
[1641129616938,27.66479,175.45,175.44,4.03966774]
[1641129617738,27.66479,175.45,175.4,12.12788834]
[1641129617938,31.7047568,175.45,175.43,4.0399668]
[1641129618741,31.7047568,175.45,175.39,19.51713439]
[1641129618742,27.66479,175.45,175.39,19.51713439]
[1641129619142,31.70475349,175.45,175.43,4.03996349]
[1641129619842,27.66479,175.45,175.39,19.51713439]
[1641129620441,31.70474555,175.45,175.43,4.03995555]
[1641129621242,27.66479,175.45,175.39,19.51713439]
[1641129621742,31.70476121,175.45,175.43,4.03997121]
[1641129622542,27.66479,175.45,175.39,19.51713439]
[1641129623845,31.71120665,175.45,175.41,12.12788834]
[1641129624347,27.66479,175.45,175.41,12.12788834]
[1641129625144,31.71109779,175.45,175.41,12.12788834]
[1641129625947,27.66479,175.45,175.41,12.12788834]
[1641129626446,31.71112562,175.45,175.41,12.12788834]
[1641129626947,27.66479,175.45,175.41,12.12788834]
[1641129627147,27.66479,175.45,175.39,7.38924605]
[1641129627148,27.66479,175.45,175.44,4.04648515]
[1641129627753,27.66479,175.45,175.4,18.53188834]
[1641129627949,30.42852121,175.45,175.4,18.53188834]
[1641129628450,27.66479,175.45,175.44,4.04647372]
[1641129629150,27.66479,175.45,175.41,1.2807095]
[1641129629151,27.66479,175.49,175.41,1.2807095]
[1641129629353,39.80356393,175.49,175.41,13.40859784]
[1641129629950,2.76326834,175.48,175.46,4.04605513]
[1641129631452,3.0,175.48,175.42,12.12788834]
[1641129631752,15.13816539,175.48,175.44,4.04644044]
[1641129632151,14.90192929,175.47,175.43,4.04650564]
[1641129632854,3.0,175.48,175.39,19.51713439]
[1641129633052,27.66479,175.45,175.39,19.51713439]
[1641129633552,27.66479,175.45,175.43,4.04649797]
[1641129634354,27.66479,175.45,175.4,12.12788834]
[1641129634556,27.66479,175.45,175.41,4.03028631]
[1641129634955,3.0,175.48,175.41,4.03028631]
[1641129635156,2.75276353,175.47,175.4,4.03035952]
[1641129635354,27.66479,175.46,175.41,6.701]
[1641129635857,27.66479,175.46,175.41,10.73135952]
[1641129637357,27.66479,175.46,175.41,6.701]
[1641129637556,29.9444,175.47,175.41,6.701]
[1641129638157,29.9444,175.47,175.42,5.30810419]
[1641129638759,29.9444,175.47,175.38,44.11128834]
[1641129638958,29.9444,175.47,175.39,1.2776264]
[1641129639458,29.9444,175.47,175.39,28.9424164]
[1641129639660,29.9444,175.47,175.42,4.03004201]
[1641129640660,29.9444,175.47,175.4,1.2776264]
[1641129641060,27.66479,175.49,175.4,1.2776264]
[1641129641260,27.66479,175.49,175.42,4.03004437]
[1641129641961,27.66479,175.49,175.4,1.2776264]
[1641129642160,27.66479,175.49,175.44,4.02974544]
[1641129642363,27.66479,175.49,175.44,8.82774544]
[1641129643062,31.69454042,175.49,175.44,4.798]
[1641129643566,27.66479,175.49,175.44,8.82773696]
[1641129644265,31.69452321,175.49,175.44,4.798]
[1641129644765,27.66479,175.49,175.44,4.798]
[1641129644969,2.76310849,175.48,175.46,4.04590981]
[1641129645872,27.66479,175.49,175.42,19.52875786]
[1641129646068,27.66479,175.49,175.42,25.02475786]
[1641129646469,2.76319202,175.48,175.46,4.04598575]
[1641129647172,27.66479,175.49,175.43,1.28279278]
[1641129647373,27.66479,175.49,175.42,19.52875786]
[1641129647973,27.66479,175.49,175.45,4.04623819]
[1641129648173,2.7634697,175.48,175.45,4.04623819]
[1641129648772,39.80350456,175.49,175.41,43.30388834]
[1641129649773,2.76346808,175.48,175.45,4.04623671]
[1641129650475,12.13871456,175.49,175.41,43.30388834]
[1641129651177,14.90217359,175.49,175.45,4.04622849]
[1641129651576,27.66479,175.48,175.45,4.04622849]
[1641129651777,27.66479,175.48,175.41,43.30388834]
[1641129652782,2.76345903,175.47,175.46,4.04623431]
[1641129653678,27.66479,175.48,175.42,19.52886374]
[1641129654279,41.42511456,175.5,175.42,13.41065721]
[1641129654480,41.42511456,175.5,175.44,4.04020869]
[1641129654481,29.2864,175.5,175.44,4.04020869]
[1641129655382,2.75936241,175.49,175.42,1.28276887]
[1641129656184,29.2864,175.5,175.44,4.04021394]
[1641129656785,2.7593288,175.49,175.42,1.28276887]
[1641129657586,29.2864,175.5,175.45,4.04008746]
[1641129658089,2.75921066,175.49,175.42,1.28276887]
[1641129658790,29.2864,175.5,175.42,1.28276887]
[1641129658990,29.2864,175.5,175.45,4.04003411]
[1641129659489,29.2864,175.5,175.42,1.28276887]
[1641129659691,2.75925661,175.49,175.42,1.28276887]
[1641129660294,29.2864,175.5,175.42,1.28276887]
[1641129660491,4.04010872,175.46,175.44,4.04010872]
[1641129660993,41.42511456,175.5,175.42,1.28276887]
[1641129661193,2.75922992,175.49,175.42,1.28276887]
[1641129661593,4.04014088,175.46,175.44,4.04014088]
[1641129662394,4.04014088,175.46,175.41,31.176]
[1641129662395,4.04003729,175.47,175.45,4.04003729]
[1641129663695,29.2864,175.5,175.45,1.28086519]
[1641129664098,2.76328157,175.49,175.46,4.04606716]
[1641129664896,41.42511456,175.5,175.42,19.52881571]
[1641129665495,2.76329543,175.49,175.46,4.04607976]
[1641129666098,41.42511456,175.5,175.45,6.597]
[1641129666298,12.13871456,175.49,175.45,10.64315746]
[1641129666796,29.2864,175.5,175.45,6.597]
[1641129666999,2.76346549,175.49,175.42,27.66479]
[1641129667297,2.76346549,175.49,175.45,4.04623409]
[1641129668099,41.42510226,175.5,175.42,27.66479]
[1641129668803,2.76341466,175.49,175.46,4.04618815]
[1641129669597,41.42510226,175.5,175.42,39.79267834]
[1641129669797,29.2864,175.5,175.42,39.79267834]
[1641129670398,29.2864,175.5,175.42,12.12788834]
[1641129670598,2.76323694,175.49,175.46,4.04602659]
[1641129671099,29.2864,175.5,175.43,1.28278965]
[1641129671302,29.2864,175.5,175.43,12.12788834]
[1641129672199,2.76324353,175.49,175.46,4.04603257]
[1641129672400,2.76324353,175.49,175.46,10.42403257]
[1641129672801,12.13870226,175.53,175.48,4.04141107]
[1641129673707,12.13870226,175.53,175.48,31.70620107]
[1641129673907,12.13870226,175.56,175.51,4.04068344]
[1641129674905,12.13870226,175.56,175.49,32.0299]
[1641129675106,14.89782223,175.57,175.52,4.04038204]
[1641129675810,12.13870226,175.56,175.51,4.04051463]
[1641129676509,12.13870226,175.56,175.49,32.0299]
[1641129677310,12.13870226,175.56,175.51,4.04052339]
[1641129678110,12.13870226,175.56,175.49,32.0299]
[1641129678913,14.89782223,175.57,175.51,4.04045146]
[1641129679414,4.0404656,175.52,175.49,32.0299]
[1641129679613,4.0404656,175.52,175.48,27.66479]
[1641129680115,12.13870226,175.56,175.51,4.04050787]
[1641129680715,4.04040201,175.53,175.5,1.28159162]
[1641129681514,14.89782223,175.57,175.51,4.04040521]
[1641129682117,4.0404026,175.53,175.5,1.28159156]
[1641129682816,14.89782223,175.57,175.49,29.4162]
[1641129683018,14.89782223,175.57,175.52,4.04039081]
[1641129683618,4.04034883,175.53,175.5,1.28159694]
[1641129684319,14.89782223,175.57,175.49,41.54408834]
[1641129684920,14.89782223,175.57,175.53,4.04453303]
[1641129685518,14.89782223,175.57,175.49,44.54408834]
[1641129686623,39.79774493,175.58,175.54,4.04431831]
[1641129687322,14.89440398,175.57,175.53,4.04440123]
[1641129688223,27.66479,175.58,175.5,1.28296047]
[1641129688824,14.89463052,175.57,175.53,4.04439581]
[1641129689627,27.66479,175.58,175.49,69.20887834]
[1641129691424,12.13397017,175.55,175.51,4.04465672]
[1641129692029,4.884,175.56,175.49,57.08099]
[1641129692328,27.66479,175.58,175.49,57.08099]
[1641129693126,2.74658838,175.57,175.49,57.08099]
[1641129693327,2.74658838,175.57,175.49,50.60948356]
[1641129698729,8.82958838,175.57,175.49,50.60948356]
[1641129699530,6.083,175.57,175.49,50.60948356]
[1641129700530,4.0223547,175.56,175.49,50.60948356]
[1641129702434,2.74608685,175.57,175.52,4.0224522]
[1641129702635,12.06735661,175.56,175.52,4.0224522]
[1641129703838,12.06735661,175.56,175.51,4.0224522]
[1641129704639,12.06735661,175.56,175.52,4.0224522]
[1641129712346,12.06735661,175.55,175.5,5.30578488]
[1641129713650,14.81344346,175.55,175.5,5.30578488]
[1641129715653,2.74608685,175.55,175.51,4.0224522]
[1641129718657,4.04197148,175.52,175.51,4.0224522]
[1641129720959,4.04197148,175.53,175.5,1.28333268]
[1641129721560,2.74608685,175.55,175.52,4.0446858]
[1641129727665,14.81344346,175.55,175.51,4.0446858]
[1641129728566,2.74608685,175.55,175.52,4.0446858]
[1641129729768,2.74608685,175.55,175.52,5.32801848]
[1641129730468,2.74608685,175.55,175.52,4.0446858]
[1641129731771,2.74608685,175.55,175.51,4.0446858]
[1641129733170,2.74608685,175.55,175.52,4.0446858]
[1641129733772,2.74608685,175.55,175.52,5.32801848]
[1641129734375,2.74608685,175.55,175.52,4.0446858]
[1641129737875,2.74608685,175.55,175.52,5.32801848]
[1641129739279,4.04456039,175.53,175.52,5.32801848]
[1641129739974,4.04456039,175.53,175.52,4.0446858]
[1641129740378,2.74608685,175.55,175.52,4.0446858]
[1641129741377,2.74608685,175.55,175.53,4.0446858]
[1641129743577,2.74608685,175.55,175.52,5.32801848]
[1641129745581,1.78318685,175.55,175.52,8.32801848]
[1641129745781,13.85054346,175.57,175.54,27.66479]
[1641129746485,12.06735661,175.57,175.54,27.66479]
[1641129746685,44.36444529,175.61,175.54,27.66479]
[1641129746886,12.06735661,175.61,175.54,27.66479]
[1641129747384,12.06735661,175.61,175.57,4.04356527]
[1641129748384,12.06735661,175.59,175.55,4.04356527]
[1641129749892,12.06735661,175.61,175.57,4.04356527]
[1641129753596,12.06735661,175.63,175.59,4.04356527]
[1641129753796,12.06735661,175.63,175.59,31.70835527]
[1641129754295,12.06735661,175.64,175.59,27.66479]
[1641129755498,12.06735661,175.64,175.6,4.0429037]
[1641129755897,12.06735661,175.64,175.59,27.66479]
[1641129756099,12.06735661,175.65,175.59,27.66479]
[1641129756901,12.06735661,175.65,175.61,4.04265292]
[1641129757805,31.0771,175.66,175.59,27.66479]
[1641129757806,31.0771,175.66,175.6,4.04280139]
[1641129758007,12.12840418,175.64,175.6,4.04280139]
[1641129758605,12.12840418,175.64,175.59,27.66479]
[1641129759206,12.12840418,175.64,175.6,4.04281588]
[1641129759808,12.12840418,175.64,175.59,31.70764968]
[1641129760506,12.12840418,175.64,175.59,4.04285968]
[1641129760906,12.12840418,175.64,175.59,27.66479]
[1641129761508,12.12840418,175.64,175.6,4.04284357]
[1641129762106,12.12840418,175.64,175.59,27.66479]
[1641129763009,12.12840418,175.64,175.59,31.70763163]
[1641129763608,12.12840418,175.64,175.6,4.04277935]
[1641129764109,12.12840418,175.64,175.59,27.66479]
[1641129764710,12.12840418,175.64,175.6,4.04282906]
[1641129765413,12.12840418,175.64,175.59,27.66479]
[1641129766112,15.31113313,175.66,175.59,27.66479]
[1641129766313,15.31113313,175.66,175.6,4.0428794]
[1641129767217,12.12864453,175.64,175.59,27.66479]
[1641129767920,12.12864453,175.64,175.6,4.04287112]
[1641129768517,12.12864453,175.64,175.56,15.12788834]
[1641129768721,12.12864453,175.64,175.56,12.12788834]
[1641129769118,12.12864453,175.64,175.59,27.66479]
[1641129769322,12.12864453,175.64,175.6,4.04288384]
[1641129770020,12.12864453,175.64,175.59,27.66479]
[1641129770723,12.12864453,175.64,175.6,4.04164118]
[1641129771222,12.12864453,175.64,175.59,27.66479]
[1641129772021,12.12864453,175.64,175.6,4.04163497]
[1641129772821,12.12864453,175.64,175.59,31.70643176]
[1641129773722,12.12864453,175.64,175.59,27.66479]
[1641129774222,12.12864453,175.64,175.6,4.04152706]
[1641129775024,10.05313313,175.66,175.59,27.66479]
[1641129775524,12.12464673,175.64,175.6,4.04154891]
[1641129776327,10.05313313,175.66,175.59,27.66479]
[1641129777128,12.12450902,175.65,175.6,4.04150301]
[1641129778031,12.12450902,175.65,175.57,31.9884]
[1641129778230,16.70150902,175.65,175.57,31.9884]
[1641129778831,12.12450902,175.64,175.59,4.04162921]
[1641129779233,12.12450902,175.64,175.59,31.70641921]
[1641129779429,12.12450902,175.64,175.59,27.66479]
[1641129779630,10.05313313,175.66,175.57,31.9884]
[1641129779631,12.12450902,175.63,175.57,31.9884]
[1641129780233,5.812,175.64,175.58,4.0418951]
[1641129780432,8.69168161,175.63,175.58,4.0418951]
[1641129780632,5.69168161,175.63,175.58,4.0418951]
[1641129780831,8.69168161,175.63,175.58,4.0418951]
[1641129781232,5.69168161,175.63,175.54,12.12788834]
[1641129781435,12.12778705,175.6,175.55,4.04259568]
[1641129782135,12.12778705,175.61,175.57,4.04232117]
[1641129782834,42.39756461,175.62,175.55,4.323]
[1641129783436,42.39756461,175.62,175.58,4.0433743]
[1641129784337,42.39756461,175.62,175.55,4.323]
[1641129784536,42.39756461,175.62,175.54,42.20438834]
[1641129785137,42.39756461,175.62,175.58,4.04340421]
[1641129785940,2.75988553,175.61,175.55,1.28351673]
[1641129786140,2.75988553,175.61,175.56,3.0]
[1641129786341,2.75988553,175.61,175.56,5.606]
[1641129786540,12.12676461,175.62,175.59,4.04310782]
[1641129786739,12.12676461,175.63,175.59,4.04310782]
[1641129787340,12.81378567,175.64,175.55,23.97662978]
[1641129787541,12.81378567,175.64,175.56,27.66479]
[1641129788441,12.12905581,175.63,175.59,4.0430186]
[1641129788641,12.12905581,175.63,175.59,8.4510186]
[1641129788843,12.81378567,175.64,175.59,4.408]
[1641129788844,14.88861459,175.64,175.59,4.408]
[1641129789743,12.12905581,175.63,175.59,8.45089126]
[1641129790545,12.81301544,175.64,175.59,4.408]
[1641129790742,12.81301544,175.64,175.57,29.974]
[1641129791144,12.12138099,175.63,175.58,4.04046033]
[1641129791646,12.12138099,175.63,175.58,1.28274845]
[1641129792745,12.12138099,175.63,175.58,4.0404402]
[1641129793146,12.12138099,175.63,175.59,4.04040286]
[1641129793747,12.12138099,175.63,175.57,29.974]
[1641129794349,12.12138099,175.63,175.56,27.66479]
[1641129794550,12.12138099,175.63,175.58,5.32317477]
[1641129795150,12.12138099,175.63,175.57,1.28273805]
[1641129796152,12.12138099,175.63,175.58,4.04058818]
[1641129796952,12.12138099,175.63,175.57,1.28273511]
[1641129797753,14.88093977,175.64,175.6,4.04028042]
[1641129798353,29.8416,175.65,175.59,32.91679]
[1641129798553,41.9622873,175.65,175.59,32.91679]
[1641129799259,41.9622873,175.65,175.6,4.0402925]
[1641129799455,14.87821275,175.64,175.6,5.32306588]
[1641129800058,41.96250095,175.65,175.56,69.65397834]
[1641129800956,12.12090095,175.63,175.58,4.04063928]
[1641129801454,12.12090095,175.63,175.56,57.52609]
[1641129801655,12.12090095,175.63,175.59,4.04313393]
[1641129802255,12.12090095,175.63,175.57,1.28354801]
[1641129802855,12.12090095,175.63,175.56,57.52609]
[1641129803157,12.12090095,175.62,175.58,4.04308207]
[1641129804056,12.80608489,175.64,175.56,57.52609]
[1641129804255,12.80608489,175.64,175.57,1.2835475]
[1641129804557,12.80608489,175.64,175.56,57.52609]
[1641129804758,12.1290966,175.62,175.58,4.0430322]
[1641129805260,12.80608489,175.64,175.56,57.52609]
[1641129805460,12.80608489,175.64,175.57,1.28355485]
[1641129805961,12.12920779,175.62,175.58,4.04306926]
[1641129806660,12.12436261,175.63,175.57,1.2830488]
[1641129807260,12.12436261,175.63,175.58,4.04147202]
[1641129808063,12.12436261,175.63,175.57,1.28304681]
[1641129808961,12.12436261,175.62,175.58,4.04152529]
[1641129809661,12.12436261,175.62,175.56,27.66479]
[1641129809662,2.75790692,175.62,175.57,5.32468651]
[1641129810663,12.12518845,175.61,175.56,27.66479]
[1641129811664,17.17118845,175.61,175.53,12.12788834]
[1641129811865,8.046,175.61,175.53,12.12788834]
[1641129812062,8.046,175.61,175.57,5.32478125]
[1641129812263,30.66479,175.58,175.57,5.32478125]
[1641129812463,30.66479,175.58,175.57,8.125e-05]
[1641129812665,39.7927165,175.58,175.49,39.79267834]
[1641129812864,31.8544,175.57,175.49,39.79267834]
[1641129813663,36.6144,175.57,175.49,39.79267834]
[1641129814264,30.14353644,175.57,175.49,39.79267834]
[1641129816366,42.27146294,175.57,175.49,39.79267834]
[1641129816868,45.27146294,175.57,175.49,12.12788834]
[1641129817668,42.27146294,175.57,175.49,12.12788834]
[1641129817967,12.1279265,175.56,175.48,18.24235215]
[1641129818467,27.66479,175.54,175.48,18.24235215]
[1641129819070,34.54279,175.54,175.48,18.24235215]
[1641129819268,37.54279,175.54,175.48,18.24235215]
[1641129819566,37.54279,175.54,175.45,30.5853]
[1641129819567,3.0,175.52,175.46,12.12788834]
[1641129819767,33.8414,175.53,175.46,12.12788834]
[1641129819967,3.0,175.53,175.46,12.12788834]
[1641129820371,34.54279,175.54,175.46,12.12788834]
[1641129820569,27.66479,175.49,175.46,12.12788834]
[1641129820772,27.66479,175.49,175.44,12.12788834]
[1641129822076,12.1279265,175.52,175.45,3.0]
[1641129822273,12.1279265,175.52,175.45,8.818]
[1641129822576,12.1279265,175.52,175.46,27.66479]
[1641129823675,45.48699091,175.55,175.47,18.24510865]
[1641129823876,45.48699091,175.55,175.47,48.88430865]
[1641129824277,33.35906441,175.55,175.48,18.24510865]
[1641129826377,33.35906441,175.55,175.48,12.12788834]
[1641129826578,45.48699091,175.55,175.47,42.76708834]
[1641129828484,33.35906441,175.55,175.47,30.6392]
[1641129830682,29.6737,175.57,175.49,27.66479]
[1641129830882,29.6737,175.57,175.49,32.04279]
[1641129834690,27.66479,175.58,175.49,32.04279]
[1641129834891,31.9932,175.62,175.5,3.0]
[1641129835091,31.9932,175.62,175.49,32.04279]
[1641129835291,5.69135767,175.64,175.52,3.0]
[1641129835489,5.69135767,175.64,175.5,3.0]
[1641129835690,36.07595767,175.64,175.5,3.0]
[1641129836091,36.07595767,175.64,175.49,35.04279]
[1641129836790,27.66479,175.63,175.54,27.66479]
[1641129836991,12.1279265,175.61,175.54,27.66479]
[1641129838796,12.1279265,175.61,175.53,12.12788834]
[1641129838997,18.8739265,175.61,175.53,12.12788834]
[1641129839900,12.1279265,175.6,175.52,12.12788834]
[1641129840400,17.5159265,175.6,175.52,12.12788834]
[1641129841002,17.5159265,175.6,175.54,27.66479]
[1641129841802,12.1279265,175.59,175.54,27.66479]
[1641129842202,12.1279265,175.59,175.51,12.12788834]
[1641129843004,12.1279265,175.59,175.54,27.66479]
[1641129844405,12.1279265,175.59,175.52,30.0377]
[1641129845006,12.1279265,175.59,175.53,27.66479]
[1641129845706,17.7319265,175.6,175.53,27.66479]
[1641129846708,12.1279265,175.59,175.53,27.66479]
[1641129847307,17.7319265,175.6,175.53,27.66479]
[1641129847507,12.1279265,175.6,175.53,27.66479]
[1641129849209,10.05816145,175.62,175.53,27.66479]
[1641129849210,39.7927165,175.63,175.53,27.66479]
[1641129851612,12.1279265,175.63,175.52,30.0377]
[1641129852615,14.87419152,175.63,175.52,30.0377]
[1641129853115,27.66479,175.61,175.52,57.70249]
[1641129853314,31.3328,175.6,175.52,57.70249]
[1641129853716,37.2218,175.6,175.5,27.66479]
[1641129854315,2.74626502,175.59,175.5,27.66479]
[1641129858919,12.1279265,175.57,175.51,1.2826848]
[1641129860024,14.87419152,175.57,175.51,1.2826848]
[1641129860425,12.1279265,175.56,175.51,1.2826848]
[1641129863225,14.87419152,175.57,175.51,1.2826848]
[1641129863426,14.87419152,175.57,175.51,5.6936848]
[1641129863828,14.87419152,175.57,175.52,1.2826848]
[1641129864226,14.87419152,175.57,175.52,7.3626848]
[1641129864626,2.74626502,175.57,175.52,6.08]
[1641129865428,2.74626502,175.57,175.53,1.2826848]
[1641129870033,2.74626502,175.57,175.51,1.2826848]
[1641129870934,14.87419152,175.59,175.51,1.2826848]
[1641129872736,4.03470877,175.55,175.52,4.03470877]
[1641129873937,4.03470877,175.55,175.51,5.31739357]
[1641129875740,4.03490236,175.54,175.5,4.03490236]
[1641129876340,2.74626502,175.57,175.5,4.03490236]
[1641129876540,14.87419152,175.57,175.49,28.94442167]
[1641129877243,14.87419152,175.57,175.49,27.66479]
[1641129877444,4.03478042,175.55,175.51,4.03478042]
[1641129878046,2.74626502,175.57,175.49,27.66479]
[1641129878745,4.03478033,175.55,175.51,4.03478033]
[1641129879245,4.03478033,175.55,175.49,27.66479]
[1641129879446,14.87419152,175.57,175.53,4.04435955]
[1641129880249,14.87419152,175.57,175.5,1.28268444]
[1641129881052,12.1279265,175.56,175.52,4.04443301]
[1641129881652,2.74626502,175.57,175.5,27.66479]
[1641129881853,14.87943613,175.57,175.53,4.04439037]
[1641129882556,2.74626502,175.57,175.54,4.04422244]
[1641129883154,17.82631088,175.58,175.53,4.04424411]
[1641129883955,17.82631088,175.58,175.5,12.12788834]
[1641129884156,12.13317111,175.56,175.52,4.04456066]
[1641129884656,2.76189699,175.57,175.48,43.63058834]
[1641129884855,2.76189699,175.57,175.49,1.28266941]
[1641129885054,2.76189699,175.57,175.52,27.66479]
[1641129885456,14.89525952,175.57,175.53,4.04445418]
[1641129886358,5.69313977,175.58,175.53,1.28266941]
[1641129886760,5.69313977,175.58,175.49,12.12788834]
[1641129886957,12.133911,175.56,175.52,4.044637]
[1641129887458,12.133911,175.56,175.52,31.709427]
[1641129887659,14.89542317,175.57,175.53,4.04448073]
[1641129888263,5.69313977,175.58,175.53,1.28267166]
[1641129888864,5.69313977,175.58,175.52,27.66479]
[1641129889064,2.76029788,175.57,175.53,4.04227832]
[1641129890364,17.81997472,175.58,175.53,1.28197952]
[1641129890864,2.76030377,175.57,175.53,4.04228367]
[1641129891565,17.81997472,175.58,175.53,1.28198014]
[1641129892365,5.76025745,175.57,175.53,4.04224156]
[1641129892565,11.55325745,175.57,175.53,4.04224156]
[1641129893266,8.55325745,175.57,175.53,4.04224156]
[1641129893766,8.55325745,175.57,175.49,13.40987245]
[1641129893967,14.8870924,175.56,175.51,4.04251793]
[1641129894268,27.66479,175.55,175.51,4.04251793]
[1641129894666,4.04255058,175.52,175.48,31.5027]
[1641129895266,2.76025745,175.54,175.51,4.04255]
[1641129896369,4.04257902,175.52,175.48,31.5027]
[1641129897069,2.76056984,175.54,175.51,4.04252556]
[1641129897670,4.04252156,175.52,175.48,31.5027]
[1641129898874,27.66479,175.55,175.51,4.0425116]
[1641129899375,4.04254801,175.52,175.48,37.7767]
[1641129899574,4.04254801,175.52,175.48,31.5027]
[1641129900176,27.66479,175.55,175.51,4.04472249]
[1641129900374,12.12683495,175.55,175.51,4.04472249]
[1641129900776,27.66479,175.55,175.52,4.04470376]
[1641129902082,27.66479,175.55,175.48,43.63058834]
[1641129902275,2.7620544,175.54,175.5,1.28264975]
[1641129902575,27.66479,175.55,175.52,4.04465805]
[1641129903380,2.7620249,175.54,175.48,43.63058834]
[1641129904178,27.66479,175.55,175.52,4.04474382]
[1641129905180,2.7620883,175.54,175.5,1.28264627]
[1641129905781,27.66479,175.55,175.52,4.04473691]
[1641129906582,27.66479,175.55,175.51,4.04478339]
[1641129906780,2.76214199,175.54,175.51,4.04478339]
[1641129907583,27.66479,175.55,175.48,31.5027]
[1641129908185,2.76201577,175.54,175.51,4.04466863]
[1641129908685,27.66479,175.55,175.52,4.04466259]
[1641129909485,14.89631289,175.54,175.5,4.04493338]
[1641129910284,27.66479,175.55,175.48,31.5027]
[1641129910786,27.66479,175.55,175.48,35.53770398]
[1641129911788,2.75522439,175.54,175.5,4.0347209]
[1641129913088,39.76980194,175.57,175.48,31.5027]
[1641129913290,31.0293,175.56,175.48,31.5027]
[1641129913489,33.78449139,175.56,175.5,4.03469091]
[1641129914191,2.75519139,175.55,175.48,31.5027]
[1641129914695,31.0293,175.56,175.48,31.5027]
[1641129914893,31.0293,175.56,175.5,4.03470664]
[1641129915392,31.0293,175.56,175.48,31.5027]
[1641129915592,4.03462753,175.54,175.51,4.03462753]
[1641129916294,31.0293,175.56,175.49,1.27950834]
[1641129917199,4.03451894,175.55,175.51,4.03451894]
[1641129918000,31.0293,175.56,175.49,1.27950834]
[1641129918602,4.03456599,175.54,175.51,4.03456599]
[1641129919503,43.13431194,175.56,175.52,4.04462347]
[1641129920205,2.76198914,175.55,175.49,1.27950834]
[1641129921005,31.0293,175.56,175.53,4.04453911]
[1641129921204,39.79840734,175.57,175.53,4.04453911]
[1641129921406,2.76186533,175.55,175.49,19.52419828]
[1641129922107,29.8079,175.56,175.53,4.04453114]
[1641129922406,39.79840734,175.57,175.53,4.04453114]
[1641129923211,39.79840734,175.57,175.49,17.68339668]
[1641129923409,14.89547772,175.56,175.52,4.04452738]
[1641129923910,27.66479,175.57,175.49,5.55550834]
[1641129924110,27.66479,175.57,175.5,1.27950834]
[1641129924610,93.65757868,175.6,175.48,74.29537834]
[1641129924811,2.76168889,175.56,175.53,4.04437148]
[1641129925011,2.76168889,175.56,175.53,9.01337148]
[1641129925710,61.36049,175.6,175.54,5.32672543]
[1641129925711,12.13311443,175.58,175.54,5.32672543]
[1641129926610,12.8208957,175.59,175.52,27.66479]
[1641129927211,12.13274225,175.58,175.54,4.04424742]
[1641129927816,12.13274225,175.58,175.52,27.66479]
[1641129928617,12.13274225,175.58,175.54,4.04420542]
[1641129929217,12.13274225,175.58,175.52,27.66479]
[1641129930216,12.13274225,175.58,175.54,4.0441909]
[1641129930618,12.13274225,175.58,175.52,27.66479]
[1641129931023,12.13274225,175.58,175.51,30.8429]
[1641129931419,12.13274225,175.58,175.54,4.04427376]
[1641129931917,12.13274225,175.58,175.52,1.28269091]
[1641129933521,12.13274225,175.58,175.54,4.0442339]
[1641129934523,12.13274225,175.58,175.52,1.28269684]
[1641129935323,12.13274225,175.58,175.54,4.04423119]
[1641129936426,12.13274225,175.58,175.51,30.8429]
[1641129936724,12.13274225,175.58,175.52,1.28269657]
[1641129937125,12.13274225,175.58,175.54,4.04413871]
[1641129937326,12.13274225,175.58,175.54,9.65713871]
[1641129937926,58.36049,175.6,175.54,5.613]
[1641129939133,58.36049,175.6,175.53,26.8075349]
[1641129940328,27.66479,175.6,175.53,26.8075349]
[1641129940528,2.76106526,175.59,175.56,4.02364012]
[1641129940727,2.76106526,175.59,175.56,10.74164012]
[1641129941128,12.07092035,175.6,175.56,6.718]
[1641129941329,12.07092035,175.63,175.59,27.66479]